Cogmind - Beta 16 @@@ ROGUE MODE // 2026.01.29 @ 19:47:05 Player: Assis Result: Destroyed by 2D-EBV(R) with Subdweller Machine Gun Performance ------------- Evolutions (0) 0 Regions Visited (2) 400 Robots Destroyed (32) 160 Value Destroyed (378) 378 Prototype IDs (0) 0 Alien Tech Used (0) 0 Bonus (0) 0 TOTAL SCORE: 938 Bonus ------- None Cogmind --------- Core Integrity 0/250 Matter 229/300 Energy 250/250 System Corruption 2% Temperature Warm (102) Movement Treading (240) Ox1 Location -10/Subcaves Parts ------- > --- POWER (1) -------- Ion Engine > --- PROPULSION (2) --- Improved Treads > --- UTILITY (2) ------ High-capacity Storage Unit > --- WEAPON (2) ------- (None) > --- INVENTORY (20) --- Ion Engine Improved Ion Engine Improved Ion Engine Light Treads Light Treads Light Treads Light Treads Flight Unit Flight Unit Flight Unit Flight Unit Sensor Array Signal Interpreter Transport Network Coupler Targeting Computer Light Armor Plating Grenade Launcher Datajack Peak State ------------ > --- POWER ------------ Ion Engine > --- PROPULSION ------- Improved Treads Improved Treads > --- UTILITY ---------- High-capacity Storage Unit Light Armor Plating > --- WEAPON ----------- Assault Rifle Assault Rifle > --- INVENTORY -------- Ion Engine Improved Ion Engine Improved Ion Engine Light Treads Light Treads Light Treads Light Treads Flight Unit Flight Unit Flight Unit Flight Unit Sensor Array Signal Interpreter Transport Network Coupler Targeting Computer Light Armor Plating Grenade Launcher Datajack [Rating: 11] Favorites ----------- Power Ion Engine Engine Ion Engine Propulsion Improved Treads Treads Improved Treads Utility Light Armor Plating Device Improved Terrain Scanner Storage High-capacity Storage Unit Protection Light Armor Plating Weapon Assault Rifle Ballistic Gun Assault Rifle Build | -11 -10 -10 ------- Run | Yrd Mat Sub Slots Evolved . | . . . Power . | . . . Propulsion . | . . . Utility . | . . . Weapon . | . . . Parts Attached 12 | 7 5 . Power 1 | 1 . . Engine 1 | 1 . . Core . | . . . Reactor . | . . . Propulsion 4 | 2 2 . Treads 4 | 2 2 . Leg . | . . . Wheel . | . . . Hover . | . . . Flight . | . . . Utility 5 | 2 3 . Device 1 | 1 . . Storage 3 | 1 2 . Processor . | . . . Hackware . | . . . Protection 1 | . 1 . Artifact . | . . . Weapon 2 | 2 . . Energy Gun . | . . . Energy Cannon . | . . . Ballistic Gun 2 | 2 . . Ballistic Cannon . | . . . Launcher . | . . . Special Weapon . | . . . Impact Weapon . | . . . Slashing Weapon . | . . . Piercing Weapon . | . . . Special Melee Weapon . | . . . Unidentified Prototypes . | . . . Parts Lost 4 | . . 4 Power . | . . . Propulsion 1 | . . 1 Utility 1 | . . 1 Weapon 2 | . . 2 Highest Loss Streak 4 | . . 4 To Critical Strikes 1 | . . 1 Average Backups 12 | 1 13 18 Power 2 | 1 3 3 Propulsion 4 | . 5 8 Utility 3 | . 3 5 Weapon . | . . 1 Tool/Special . | . . . Unused Backups 18 | . 2 16 Power 5 | . 2 3 Propulsion 6 | . . 6 Utility 5 | . . 5 Weapon 1 | . . 1 Tool/Special 1 | . . 1 Average Slot Usage (%) 97 | . 96 99 Engine 14 | . 14 14 Treads 28 | . 28 28 Storage 14 | . 14 14 Protection 11 | . 10 13 Ballistic Gun 27 | . 28 27 Peak Build Rating 11 | 9 11 11 Average Rating 9 | 5 10 10 On Entrance 5 | . 6 11 Avg Prop Armor Cover (%) . | . . . Naked Turns . | . . . Heaviest Build 52 | 14 52 52 Greatest Support 46 | 40 46 46 Greatest Overweight (x) 1 | . 1 1 Average Overweight (x) . | . . . Largest Inventory Capacity 20 | 8 20 20 Average Capacity 16 | 7 17 20 Most Carried 18 | 2 18 18 Average Carried 12 | 1 13 18 Final Capacity 20 | 8 20 20 Final Carried 18 | 2 18 18 Class Distribution -------------------- 100% | Mutant Dominant Class ---------------- Mutant | -10/Materials Mutant | -10/Subcaves Resources | -11 -10 -10 ----------- Run | Yrd Mat Sub Matter Collected 702 | 332 370 . Remotely . | . . . Salvage Created 735 | 241 494 . Parts 69 | 25 44 . Haulers Intercepted 2 | . 2 . Recyclers Shooed . | . . . Parts Field Recycled . | . . . Retrieved Matter . | . . . Parts Self-Destructed 2 | . . 2 Prevented . | . . . Parts Restored . | . . . Kills | -11 -10 -10 ------- Run | Yrd Mat Sub Combat Hostiles Destroyed 16 | . 16 . Guns 16 | . 16 . Classes Destroyed 8 | 2 6 . Worker 1 | . 1 . Tunneler 9 | 9 . . Hauler 2 | . 2 . Recycler 1 | 1 . . Operator 2 | . 2 . Watcher 1 | . 1 . Swarmer 12 | . 12 . Grunt 4 | . 4 . Best Kill Streak 4 | 3 4 . Combat Bots Only 3 | . 3 . Max Kills in Single Turn 2 | 1 2 . Gunslinging 1 | . 1 . Exploded . | . . . Melee . | . . . Uniques/NPCs Destroyed . | . . . Combat | -11 -10 -10 -------- Run | Yrd Mat Sub Hostile Shots Fired 107 | . 69 38 Missed 38 | . 28 10 Hits 69 | . 41 28 Projectile 69 | . 41 28 Critical Strikes 1 | . . 1 Damage Taken 992 | . 409 583 Core 266 | . 116 150 Absorbed by Shields . | . . . Core Remaining (%) 100 | 100 . . Volleys Fired 74 | 12 50 12 Largest 2 | 2 2 2 Hottest 40 | 40 40 40 Shots Fired 144 | 24 100 20 Gun 144 | 24 100 20 Cannon . | . . . Launcher . | . . . Special . | . . . Kinetic 144 | 24 100 20 Thermal . | . . . Explosive . | . . . Electromagnetic . | . . . Robot Hit Streak 12 | 8 8 12 Robot Miss Streak 4 | 3 4 . Penetration Max . | . . . Secondary Targets 3 | . 3 . Max Gunslinging Chain 1 | . 1 . Shots Hit Robots 82 | 13 58 11 Core Hits 42 | 10 31 1 Critical Kills 1 | . 1 . Critical Parts Destroyed . | . . . Critical Strikes 1 | . 1 . Destroy 1 | . 1 . Melee Attacks . | . . . Impact . | . . . Slashing . | . . . Piercing . | . . . Sneak Attacks . | . . . Combat Hostiles . | . . . Follow-up Attacks . | . . . Damage Inflicted 1037 | 166 785 86 Guns 1037 | 166 785 86 Cannons . | . . . Explosions . | . . . Melee . | . . . Ramming . | . . . Kinetic 1037 | 166 785 86 Thermal . | . . . Explosive . | . . . Electromagnetic . | . . . Impact . | . . . Slashing . | . . . Piercing . | . . . Highest Corruption 2 | . 2 2 Average Corruption 2 | . 2 2 Corruption Purged . | . . . Corruption Blocked . | . . . Effects 24 | . 12 12 Message Errors 5 | . 3 2 Matter Fused 5 | . 3 2 Heat Flow Errors 5 | . 1 4 Energy Discharges 3 | . 1 2 Data Loss (minor) 3 | . 2 1 Misfires 2 | . 1 1 Weapon Failures 1 | . 1 . Overload Shots . | . . . Overflow Damage . | . . . Projectiles . | . . . Explosions . | . . . Melee . | . . . Knockbacks . | . . . Impact . | . . . Kinetic . | . . . Secondary . | . . . Self-Inflicted Damage . | . . . Shots . | . . . Rammed . | . . . Targets Rammed . | . . . Kicked . | . . . Crushed . | . . . Highest Temperature 257 | . 130 257 Average Temperature 79 | . 35 114 Received Heat Transfer 132 | . 78 54 Siege Activations . | . . . Martial Activations . | . . . Shielding Activations . | . . . Robots Disrupted . | . . . Combat Hostiles . | . . . Robots Corrupted . | . . . Combat Hostiles . | . . . Parts Fried . | . . . Impact Corruptions . | . . . Robots Melted . | . . . Combat Hostiles . | . . . Parts Melted . | . . . Heat Transferred . | . . . Parts Sabotaged . | . . . Parts Stolen . | . . . Parts Stripped . | . . . Power Chain Reactions . | . . . Alert | -11 -10 -10 ------- Run | Yrd Mat Sub Maximum Alert Level . | . . . Low Security (%) 100 | 100 100 . Level 1 . | . . . Level 2 . | . . . Level 3 . | . . . Level 4 . | . . . Level 5 . | . . . High Security . | . . . Max Security . | . . . Peak Influence 161 | 15 161 . Initial . | . . . Average 36 | . 50 . Influence Increases 488 | 50 438 . Destroy 0b10 Robot/C 320 | . 320 . Destroy 0b10 Robot/NC 80 | 50 30 . Destroy Leader 66 | . 66 . Successful Hack 6 | . 6 . Destroy Structure 1 | . 1 . Lose Combat Pursuer 15 | . 15 . Influence Decreases 488 | 50 357 81 Entered New Map 40 | . . 40 Time Decay 448 | 50 357 41 Squads Dispatched 2 | . 2 . Investigation . | . . . Extermination . | . . . Reinforcement 2 | . 2 . Assault . | . . . Garrison . | . . . Intercept . | . . . Searches Triggered . | . . . Construction Impeded . | . . . Haulers Reinforced . | . . . Active Scanning Responses . | . . . Cargo Convoy Interrupts . | . . . Stealth | -11 -10 -10 --------- Run | Yrd Mat Sub Distress Signals 2 | . 2 . Communications Jammed . | . . . Distress Signals . | . . . Times Spotted 35 | . 32 3 Peak Tracking Total 5 | . 5 3 Tactical Retreats 1 | . 1 . Traps | -11 -10 -10 ------- Run | Yrd Mat Sub Traps Triggered 2 | . 2 . Indirectly . | . . . Trap Hack Attempts . | . . . Triggered . | . . . Disarmed . | . . . Reprogrammed . | . . . Reused . | . . . Traps Extracted . | . . . Installed . | . . . Triggered . | . . . Machines | -11 -10 -10 ---------- Run | Yrd Mat Sub Machines Disabled . | . . . Max in Single Turn . | . . . Machines Repaired . | . . . Machines Dismantled . | . . . Machines Sabotaged . | . . . Overloaded Fab Kills . | . . . Hacking | -11 -10 -10 --------- Run | Yrd Mat Sub Machines Accessed 5 | . 5 . Terminals 5 | . 5 . Fabricators . | . . . Repair Stations . | . . . Recycling Units . | . . . Scanalyzers . | . . . Garrison Access . | . . . Total Hacks 10 | . 10 . Successful 2 | . 2 . Failed 8 | . 8 . Catastrophic 3 | . 3 . Database Lockouts . | . . . Manual 10 | . 10 . Terminals 10 | . 10 . Fabricators . | . . . Repair Stations . | . . . Recycling Units . | . . . Scanalyzers . | . . . Garrison Access . | . . . Terminal Hacks 2 | . 2 . Terminal Index 1 | . 1 . Alert Level 1 | . 1 . Fabricator Hacks . | . . . Repair Station Hacks . | . . . Recycling Unit Hacks . | . . . Scanalyzer . | . . . Garrison Access Hacks . | . . . Unauthorized Hacks . | . . . Terminals . | . . . Fabricators . | . . . Repair Stations . | . . . Recycling Units . | . . . Scanalyzers . | . . . Garrison Access . | . . . Data Cores Recovered . | . . . Used . | . . . Hacking Detections 5 | . 5 . Full Trace Events . | . . . Feedback Events . | . . . Feedback Blocked . | . . . Robot Schematics Acquired . | . . . Robots Built . | . . . Authchips . | . . . Time . | . . . Total Robot Build Rating . | . . . Part Schematics Acquired . | . . . Parts Built . | . . . Authchips . | . . . Time . | . . . Total Part Build Rating . | . . . Part Studies Acquired . | . . . Parts Repaired . | . . . Time . | . . . Parts Recycled . | . . . Recycled Matter . | . . . Retrieved Matter . | . . . Retrieved Components . | . . . Parts Scanalyzed . | . . . Part Schematics Acquired . | . . . Parts Damaged . | . . . Bothacking | -11 -10 -10 ------------ Run | Yrd Mat Sub Used RIF Installer . | . . . Robots Hacked . | . . . Non-combat . | . . . Combat . | . . . Robot Hacks Applied . | . . . Relay Couplers Released . | . . . Fabnet Peak Effective % . | . . . Robots Rewired . | . . . Allies Hacked . | . . . Hacks Repelled . | . . . Allies | -11 -10 -10 -------- Run | Yrd Mat Sub Total Allies . | . . . Largest Group . | . . . Highest-Rated Group . | . . . Highest-Rated Ally . | . . . Total Orders . | . . . Ally Attacks . | . . . Total Damage . | . . . Kills . | . . . Allies Corrupted . | . . . Allies Melted . | . . . Intel | -11 -10 -10 ------- Run | Yrd Mat Sub Active Infowar (turns) 2 | 2 . . Terrain 2 | 2 . . Robot Analysis Total . | . . . Derelict Logs Recovered 1 | . . 1 Drone Launches . | . . . Drone Recoveries . | . . . Exploration | -11 -10 -10 ------------- Run | Yrd Mat Sub Turns Passed 2974 | 585 1471 918 Spaces Moved 1189 | 151 666 372 Core 3 | 3 . . Treads 1186 | 148 666 372 Legs . | . . . Wheels . | . . . Hover . | . . . Flight . | . . . Fastest Speed 50 | 50 160 160 Average Speed 201 | 157 190 238 Slowest Speed 240 | 160 240 240 Overloaded Moves . | . . . Propulsion Burnouts . | . . . Robots Hopped . | . . . Potential Cave-ins . | . . . Cave-ins Triggered . | . . . Exploration Rate (%) 36 | 7 88 14 Regions Visited 2 Branch Regions 1 Pre-discovered Areas . | . . . Known Exits Taken . | . . . Unknown Exits Taken 2 | 1 1 . Scrap Searched . | . . . Spaces Dug . | . . . Terrain Destroyed . | . . . Melee . | . . . Projectile . | . . . AOE . | . . . Terrain Rammed . | . . . Walls Destroyed . | . . . Machines Disabled . | . . . Actions | -11 -10 -10 --------- Run | Yrd Mat Sub Total 1624 | 471 769 384 Wait 326 | 298 28 . Move 1187 | 150 665 372 Hop . | . . . Pick Up 18 | 2 16 . Fast Attach 9 | 7 2 . Attach . | . . . Detach 2 | 1 1 . Swap 3 | . 3 . Drop 5 | 1 4 . Fire 74 | 12 50 12 Melee . | . . . Ram . | . . . Kick . | . . . Crush . | . . . Escape Stasis . | . . . Rewire . | . . . Trap . | . . . Miscellaneous . | . . . Route ------- -11/Scrapyard -10/Materials (discovered 5 exits: [*Mat x3] / [*Min] / [*Sub]) -10/Subcaves (discovered 1 exit: Rec) History --------- Turn | Location | Event 16 | -11/Scrapyard | Discovered new exit (range 15) 586 | -11/Scrapyard | Entered Materials 598 | -10/Materials | Build established: Mutant 813 | -10/Materials | Discovered new exit (range 11) 1236 | -10/Materials | Discovered new exit (range 16) 1617 | -10/Materials | Discovered new exit (range 11) 1942 | -10/Materials | Discovered new exit (range 16) 2040 | -10/Materials | Discovered new exit (range 6) 2057 | -10/Materials | Entered Subcaves 2175 | -10/Subcaves | Identified exit to Recycling 2642 | -10/Subcaves | Shifting Twisted Machinery released Sub. Beam Cannon 2642 | -10/Subcaves | Shifting Twisted Machinery released Flamer 2644 | -10/Subcaves | A swath of the cavern ceiling suddenly collapsed 2937 | -10/Subcaves | A Subdweller sparked back to life 2937 | -10/Subcaves | A Subdweller sparked back to life 2937 | -10/Subcaves | A Subdweller sparked back to life 2940 | -10/Subcaves | Core integrity fell below 50% 2956 | -10/Subcaves | Core integrity fell below 20% 2975 | -10/Subcaves | Destroyed by 2D-EBV(R) with Subdweller Machine Gun Last Messages --------------- 02444_ Y1-PMN(u) tweaks Twisted Machinery. 02599_ System corrupted: Energy discharge (-70). Sub. Beam Cannon falls loose from the Twisted Machinery. Flamer falls loose from the Twisted Machinery. A swath of the cavern ceiling suddenly collapses. 02646_ System corrupted: Energy discharge (-87). 02696_ System corrupted: Heat flow error (+148). 02793_ F0-2TB(u) tweaks Twisted Machinery. 02854_ Y1-PMN(u) tweaks Twisted Machinery. 02937_ M9-0C0(R) creaks and sparks as it begins to move. 02937_ T1-U28(R) creaks and sparks as it begins to move. 02937_ 2D-EBV(R) creaks and sparks as it begins to move. 02945_ M9-0C0(R) affixes Scrap Shield Fragment to Scrap Shield. 02949_ Lgt. Armor Plating destroyed. 02950_ Assault Rifle destroyed. 02956_ M9-0C0(R) affixes Scrap Shield Fragment to Scrap Shield. 02961_ Assault Rifle destroyed. 02970_ System corrupted: Heat flow error (+286). 02971_ Critical hit (Destroy). 02971_ Imp. Treads destroyed. Map ----- +----------------------------------------------------+ | ?????????????????????????????????????????????????? | | ?????????????????????????????????????????????????? | | ?????????????????????????????????????????????????? | | ?????????????????????????????????????????????????? | | ?????????????????????????????????????????????????? | | ?????????????????????????????????????????????????? | | ?????????????????????????????????????????????????? | | ??????????????????????????????????????????###???## | | ??????????????????????????????????????##### ##??# | | ???????????????????????????????#####??# ##?## | | ????????????????????????????#### #?## #### | | ?????????????????????????#### ### ## | | ????????????????????????## | | ?????????????????????#### | | ?????????????????????# # ### ### ## | | ?????????????????????# ###?###?## #### | | ????????????????###### ##????????### ## #??? | | ????????????????# #??????????######## ##?? | | ????????????????# # #####?????????????## ### | | ????????????????# #??????????????## # | | ????????????????## #???????????????# | | ???????????????### #?????????????### | | ??????????????## R ##?????????????# ## | | ??????????????# R ######?????##### ## | | ?????????####?# R ####### #? | | ????????## ### # ## @ ##? | | ????????# ### ### ## #?# | | ????????# ######?# #######?# | | ????????# &"""????## ##??????# | | ????????## """#????# ##?????# | | ?????????### " " #????# ## ##????? | | ???????????### "& "#????# ## ##??## | | ?????????????## " "##??###### ## #### | | ??????????????##"###???# ### ### ## | | ?????????????? "#"#????# ### #### | | ????????????? #""""#??## ## ### ### """ " | | ???????????? """#"#### ## ###?# """ | | ???????????? ]#" ### #### ##???## """ | | ??????????? "" #?#"" ##????## | | ?????????? |" #?#""" " #?????##" ## | | ?????????## ?? ?###""####"""# #??????##" ## | | ??????????# ???" ???# ""??#### #???????#"##? | | ?????????? ????????#""""????#" #???????# ?? | | ?????????? ???????" ""#????#" ##???????# "? | | ??????????? ????????### # ????#"" ##????????# ""? | | ???????????????????????#??????######????????? ""?? | | ?????????????????????????????????????????????###?? | | ?????????????????????????????????????????????????? | | ?????????????????????????????????????????????????? | | ?????????????????????????????????????????????????? | +----------------------------------------------------+ Best States ------------- Heat Dissipation 25 Energy Generation 10 Energy Capacity 250 Matter Stores 300 Matter Capacity 300 Sight Range 16 Terrain Scan Density 10 Armor Coverage 150 Evasion (%) 40 Recoil Reduction 2 Item Schematics ----------------- None Robot Schematics ------------------ None Fabricated ------------ Nothing Repaired ---------- Nothing Studied --------- None Alien Tech Used ----------------- None Achievements -------------- None Challenges ------------ None Game ------ Seed NullReflectiveBrace Manual? 0 Play Time 00:12:56 Cumulative 27.4 hours Start 2026.01.29 @ 19:36:38 End 2026.01.29 @ 19:47:05 Sessions 1 Manual Loads 0 Difficulty Rogue Special Mode None Game No. 56 Rogue 56 Adventurer 0 Explorer 0 Win Type - Total 0 Types 0/0/0/0/0/0/0/0/0/0 Lore% 14 Gallery% 22 Achievement% 18 Wizard Run 0 Options --------- Layout 0 ASCII 0 Keyboard 1 Movement Arrows Keybinds 0 Fullscreen 1 Font 18/Smallcaps Map View 38x25 Zoom Use 86% Tactical HUD 1 Map Filters NONE Filters NONE Steam 1 RUN: b92f9bee-c8cc-4202-8ffb-4abe614773ae